fUSD/lending_fUSD_20241112
["ID","MTS","AMOUNT","RATE_DAILY","PERIOD"]
[342032407,1731372647230,-150.0,0.00014757,2]
[342032408,1731372647240,-150.0,0.00014759,2]
[342032409,1731372647249,-150.0,0.0001476,2]
[342032410,1731372647258,-150.0,0.00014764,2]
[342032411,1731372647268,-150.0,0.00014765,2]
[342032412,1731372647277,-500.0,0.00014773,2]
[342032413,1731372647287,-231.15259928,0.00014775,2]
[342032414,1731372647297,-150.0,0.00014776,2]
[342032415,1731372647307,-150.0,0.0001478,2]
[342032416,1731372647321,-150.0,0.00014781,2]
[342032417,1731372647331,-1500.0,0.00014782,2]
[342032418,1731372647342,-150.0,0.00014784,2]
[342032419,1731372647351,-150.0,0.00014786,2]
[342032420,1731372647360,-276.54484351,0.00014787,2]
[342032421,1731372647370,-150.0,0.00014788,2]
[342032422,1731372647379,-1072.0,0.00014795,2]
[342032423,1731372647389,-150.0,0.00014795,2]
[342032424,1731372647398,-150.0,0.00014799,2]
[342032425,1731372647407,-1673.81919903,0.000148,2]
[342032426,1731372647416,-150.0,0.000148,2]
[342032427,1731372647425,-735.0,0.000148,5]
[342032428,1731372647435,-150.0,0.00014801,2]
[342032429,1731372647444,-150.0,0.00014803,2]
[342032430,1731372647455,-150.0,0.00014806,2]
[342032431,1731372647464,-150.0,0.00014806,2]
[342032435,1731372647474,-150.0,0.00014816,2]
[342032436,1731372647635,-150.0,0.00014819,2]
[342032437,1731372647645,-255.0,0.0001482,2]
[342032439,1731372647655,-150.0,0.0001482,2]
[342032441,1731372647665,-150.0,0.00014828,2]
[342032443,1731372647680,-150.0,0.00014829,2]
[342032445,1731372647690,-150.0,0.00014831,2]
[342032446,1731372647699,-150.0,0.00014833,2]
[342032447,1731372647711,-150.0,0.00014835,2]
[342032448,1731372647722,-150.0,0.0001484,2]
[342032449,1731372647731,-150.0,0.00014841,2]
[342032450,1731372647740,-150.0,0.00014844,2]
[342032451,1731372647752,-150.0,0.00014847,2]
[342032452,1731372647761,-492.93292266,0.0001485,2]
[342032453,1731372647770,-204.75643073,0.00014852,2]
[342032454,1731372647779,-150.0,0.00014853,2]
[342032455,1731372647789,-150.0,0.00014863,2]
[342032456,1731372647799,-150.0,0.00014864,2]
[342032457,1731372647808,-150.0,0.00014869,2]
[342032458,1731372647817,-150.0,0.00014877,2]
[342032459,1731372647826,-1500.0,0.00014877,2]
[342032460,1731372647836,-150.0,0.00014881,2]
[342032461,1731372647845,-150.0,0.00014885,2]
[342032462,1731372647854,-150.0,0.0001489,2]
[342032463,1731372647864,-150.0,0.00014891,2]
[342032464,1731372647873,-150.0,0.00014891,2]
[342032465,1731372647882,-219.44927686,0.00014892,2]
[342032466,1731372647891,-150.0,0.00014898,2]
[342032467,1731372647901,-1000.0,0.00014899,2]
[342032468,1731372647911,-255.82418449,0.00014899,2]
[342032469,1731372647924,-244.17581551,0.00014899,2]
[342032470,1731372647933,-182.22701553,0.000149,2]
[342032471,1731372647942,-177.39792213,0.000149,2]
[342032472,1731372647951,-177.39792213,0.000149,2]
[342032473,1731372647963,-177.39792213,0.000149,2]
[342032474,1731372647972,-177.39792213,0.000149,2]
[342032475,1731372647981,-177.39792213,0.000149,2]
[342032476,1731372647990,-177.39792213,0.000149,2]
[342032477,1731372647999,-177.39792213,0.000149,2]
[342032478,1731372648008,-177.39792213,0.000149,2]
[342032479,1731372648018,-177.39792213,0.000149,2]
[342032480,1731372648027,-177.39792213,0.000149,2]
[342032481,1731372648036,-177.39792213,0.000149,2]
[342032482,1731372648045,-177.39792213,0.000149,2]
[342032483,1731372648054,-177.39792213,0.000149,2]
[342032484,1731372648063,-177.39792213,0.000149,2]
[342032485,1731372648073,-177.39792213,0.000149,2]
[342032486,1731372648083,-177.39792213,0.000149,2]
[342032487,1731372648092,-177.39792213,0.000149,2]
[342032488,1731372648102,-177.39792213,0.000149,2]
[342032489,1731372648111,-177.39792213,0.000149,2]
[342032490,1731372648121,-177.39,0.000149,2]
[342032491,1731372648132,-266.09688319,0.000149,2]
[342032492,1731372648142,-266.09688319,0.000149,2]
[342032493,1731372648151,-266.09688319,0.000149,2]
[342032494,1731372648161,-266.09688319,0.000149,2]
[342032495,1731372648171,-266.09688319,0.000149,2]
[342032496,1731372648180,-266.09688319,0.000149,2]
[342032497,1731372648189,-266.09688319,0.000149,2]
[342032498,1731372648199,-266.09688319,0.000149,2]
[342032499,1731372648211,-266.09688319,0.000149,2]
[342032500,1731372648220,-266.09688319,0.000149,2]
[342032501,1731372648229,-266.09688319,0.000149,2]
[342032502,1731372648238,-266.09688319,0.000149,2]
[342032503,1731372648247,-266.09688319,0.000149,2]
[342032504,1731372648256,-266.09688319,0.000149,2]
[342032505,1731372648265,-266.09688319,0.000149,2]
[342032506,1731372648274,-266.09688319,0.000149,2]
[342032507,1731372648284,-266.09688319,0.000149,2]
[342032508,1731372648293,-266.09688319,0.000149,2]
[342032509,1731372648302,-266.09688319,0.000149,2]
[342032510,1731372648311,-266.09,0.000149,2]
[342032511,1731372648320,-163.59050139,0.000149,2]
[342032512,1731372648330,-163.59050139,0.000149,2]
[342032513,1731372648339,-163.59050139,0.000149,2]
[342032514,1731372648348,-163.59050139,0.000149,2]
[342032515,1731372648357,-163.59,0.000149,2]
[342032516,1731372648367,-153.36609506,0.000149,2]
[342032517,1731372648375,-153.36609506,0.000149,2]
[342032518,1731372648385,-153.36609506,0.000149,2]
[342032519,1731372648394,-153.36609506,0.000149,2]
[342032520,1731372648404,-153.36609506,0.000149,2]
[342032521,1731372648413,-153.36609506,0.000149,2]
[342032522,1731372648422,-153.36609506,0.000149,2]
[342032523,1731372648431,-153.36,0.000149,2]
[342032524,1731372648440,-5168.15285959,0.000149,2]
[342032525,1731372648450,-400.0,0.000149,3]
[342032526,1731372648461,-231.15259928,0.000149,2]
[342032527,1731372648471,-171.23575503,0.000149,2]
[342032528,1731372648481,-1760.61326062,0.000149,2]
[342032529,1731372648491,-1383.77317412,0.000149,2]
[342032530,1731372648499,-383.61389346,0.000149,2]
[342032531,1731372648509,-150.0,0.00014902,2]
[342032532,1731372648519,-150.0,0.00014906,2]
[342032533,1731372648528,-500.0,0.0001491,2]
[342032534,1731372648538,-150.0,0.0001491,2]
[342032535,1731372648547,-150.0,0.00014914,2]
[342032536,1731372648557,-218.11441508,0.00014923,2]
[342032537,1731372648566,-150.0,0.00014926,2]
[342032538,1731372648581,-150.0,0.00014927,2]
[342032539,1731372648595,-150.0,0.00014932,2]
[342032540,1731372648604,-150.0,0.00014935,2]
[342032541,1731372648614,-150.0,0.00014936,2]
[342032542,1731372648624,-150.0,0.00014937,2]
[342032543,1731372648634,-8208.63233663,0.00014938,2]
[342032544,1731372648648,-150.0,0.00014941,2]
[342032545,1731372648658,-150.0,0.00014944,2]
[342032546,1731372648667,-150.0,0.00014946,2]
[342032547,1731372648678,-150.0,0.0001495,2]
[342032548,1731372648690,-150.0,0.00014955,2]
[342032549,1731372648700,-150.0,0.00014956,2]
[342032550,1731372648712,-150.0,0.00014956,2]
[342032551,1731372648722,-150.0,0.00014957,2]
[342032552,1731372648731,-1531.63457873,0.0001496,2]
[342032553,1731372648741,-150.0,0.00014962,2]
[342032554,1731372648750,-229.45446964,0.00014968,2]
[342032555,1731372648762,-150.0,0.0001497,2]
[342032556,1731372648771,-1493.7,0.00014971,2]
[342032557,1731372648781,-150.0,0.00014972,2]
[342032558,1731372648791,-500.0,0.00014973,2]
[342032559,1731372648800,-500.0,0.00014973,2]
[342032560,1731372648809,-500.0,0.00014973,2]
[342032561,1731372648820,-500.0,0.00014973,2]
[342032562,1731372648829,-463.68159167,0.00014973,2]
[342032563,1731372648838,-152.82772214,0.00014981,2]
[342032564,1731372648848,-150.0,0.00014983,2]
[342032565,1731372648858,-150.0,0.00014988,2]
[342032566,1731372648868,-150.0,0.00014988,2]
[342032567,1731372648878,-667.03346376,0.00014988,2]
[342032568,1731372648887,-702.6855146,0.00014988,2]
[342032569,1731372648897,-365.66695574,0.00014989,2]
[342032570,1731372648907,-614.4184193,0.0001499,2]
[342032571,1731372648916,-526.1513241,0.0001499,2]
[342032572,1731372648925,-437.8842289,0.0001499,2]
[342032573,1731372648935,-349.6171336,0.0001499,2]
[342032574,1731372648944,-261.3500384,0.0001499,2]
[342032575,1731372648956,-150.0,0.00014994,2]
[342032576,1731372648965,-150.0,0.00014994,2]
[342032577,1731372648975,-500.0,0.00014998,2]
[342032578,1731372648984,-500.0,0.00014998,2]
[342032579,1731372648994,-151.180912,0.00014999,2]
[342032580,1731372649003,-151.0,0.00014999,2]
[342032581,1731372649012,-283.26062,0.00014999,2]
[342032582,1731372649022,-283.26062,0.00014999,2]
[342032583,1731372649033,-151.0,0.00014999,2]
[342032584,1731372649043,-151.0,0.00014999,2]
[342032585,1731372649051,-151.0,0.00014999,2]
[342032586,1731372649061,-151.0,0.00014999,2]
[342032587,1731372649070,-2414.11196256,0.00014999,2]
[342032588,1731372649079,-166.241135,0.00014999,2]
[342032589,1731372649088,-151.0,0.00014999,2]
[342032590,1731372649097,-151.0,0.00014999,2]
[342032591,1731372649107,-151.0,0.00014999,2]
[342032592,1731372649116,-151.0,0.00014999,2]
[342032593,1731372649126,-151.0,0.00014999,2]
[342032594,1731372649135,-172.595974,0.00014999,2]
[342032595,1731372649144,-151.0,0.00014999,2]
[342032596,1731372649153,-430.058512,0.00014999,2]
[342032597,1731372649163,-430.058512,0.00014999,2]
[342032598,1731372649173,-151.0,0.00014999,2]
[342032599,1731372649182,-151.0,0.00014999,2]
[342032600,1731372649192,-151.0,0.00014999,2]
[342032601,1731372649202,-151.0,0.00014999,2]
[342032602,1731372649214,-161.236804,0.00014999,2]
[342032603,1731372649223,-151.0,0.00014999,2]
[342032604,1731372649233,-151.0,0.00014999,2]
[342032605,1731372649243,-151.0,0.00014999,2]
[342032606,1731372649252,-4816.091031,0.00014999,2]
[342032607,1731372649262,-4816.091031,0.00014999,2]
[342032608,1731372649271,-151.0,0.00014999,2]
[342032609,1731372649281,-259.665805,0.00014999,2]
[342032610,1731372649290,-151.0,0.00014999,2]
[342032611,1731372649300,-151.0,0.00014999,2]
[342032612,1731372649309,-382.86443,0.00014999,2]
[342032613,1731372649318,-382.86443,0.00014999,2]
[342032614,1731372649327,-151.0,0.00014999,2]
[342032615,1731372649336,-558.874127,0.00014999,2]
[342032616,1731372649346,-558.874127,0.00014999,2]
[342032617,1731372649355,-151.0,0.00014999,2]
[342032618,1731372649364,-151.0,0.00014999,2]
[342032619,1731372649373,-151.0,0.00014999,2]
[342032620,1731372649382,-175.478083,0.00014999,2]
[342032621,1731372649391,-1229.554639,0.00014999,2]
[342032622,1731372649401,-1229.554639,0.00014999,2]
[342032623,1731372649410,-151.0,0.00014999,2]
[342032624,1731372649419,-555.621601,0.00014999,2]
[342032625,1731372649428,-555.621601,0.00014999,2]
[342032626,1731372649438,-610.29695,0.00014999,2]
[342032627,1731372649447,-610.29695,0.00014999,2]
[342032628,1731372649456,-221.894743,0.00014999,2]
[342032629,1731372649465,-221.894743,0.00014999,2]
[342032630,1731372649474,-500.0,0.00014999,2]
[342032631,1731372649483,-500.0,0.00014999,2]
[342032632,1731372649492,-454.9,0.00014999,2]
[342032633,1731372649502,-500.0,0.00014999,2]
[342032634,1731372649511,-500.0,0.00014999,2]
[342032635,1731372649520,-500.0,0.00014999,2]
[342032636,1731372649529,-500.0,0.00014999,2]
[342032637,1731372649539,-500.0,0.00014999,2]
[342032638,1731372649548,-500.0,0.00014999,2]
[342032639,1731372649558,-578.6367146,0.00014999,2]
[342032640,1731372649567,-500.0,0.00014999,2]
[342032641,1731372649576,-500.0,0.00014999,2]
[342032642,1731372649585,-537.40654923,0.00014999,2]
[342032643,1731372649595,-569.26,0.00014999,2]
[342032644,1731372649604,-857.06,0.00014999,2]
[342032645,1731372649614,-857.06,0.00014999,2]
[342032646,1731372649624,-857.06,0.00014999,2]
[342032647,1731372649634,-857.06,0.00014999,2]
[342032648,1731372649644,-857.06,0.00014999,2]
[342032649,1731372649654,-857.06,0.00014999,2]
[342032650,1731372649664,-857.06,0.00014999,2]
[342032651,1731372649673,-857.06,0.00014999,2]
[342032652,1731372649685,-857.06,0.00014999,2]
[342032653,1731372649695,-857.06,0.00014999,2]
[342032654,1731372649704,-857.06,0.00014999,2]
[342032655,1731372649714,-857.08678917,0.00014999,2]
[342032656,1731372649724,-500.0,0.00014999,2]
[342032657,1731372649732,-500.0,0.00014999,2]
[342032658,1731372649741,-500.0,0.00014999,2]
[342032659,1731372649750,-500.0,0.00014999,2]
[342032660,1731372649760,-251.44123301,0.00014999,2]
[342032661,1731372649770,-1619.72,0.00014999,2]
[342032662,1731372649779,-1619.72,0.00014999,2]
[342032663,1731372649789,-1619.72,0.00014999,2]
[342032664,1731372649798,-1619.72,0.00014999,2]
[342032665,1731372649808,-1619.72,0.00014999,2]
[342032666,1731372649817,-888.15706944,0.00014999,2]
[342032667,1731372650041,-731.56293056,0.00014999,2]
[342032668,1731372650051,-1619.72,0.00014999,2]
[342032669,1731372650061,-1619.72,0.00014999,2]
[342032670,1731372650071,-1619.72,0.00014999,2]
[342032671,1731372650080,-1619.72,0.00014999,2]
[342032672,1731372650089,-1619.78161299,0.00014999,2]
[342032673,1731372650098,-500.0,0.00014999,2]
[342032674,1731372650107,-425.25549895,0.00014999,2]
[342032675,1731372650118,-127.72440745,0.00014999,2]
[342032676,1731372650137,-940.78,0.00014999,2]
[342032677,1731372650150,-940.78,0.00014999,2]
[342032678,1731372650160,-940.78,0.00014999,2]
[342032679,1731372650169,-940.78,0.00014999,2]
[342032680,1731372650179,-635.54962859,0.00014999,2]
[342032681,1731372650191,-305.23037141,0.00014999,2]
[342032682,1731372650201,-940.78,0.00014999,2]
[342032683,1731372650212,-940.78,0.00014999,2]
[342032684,1731372650222,-940.78,0.00014999,2]
[342032685,1731372650232,-940.78,0.00014999,2]
[342032686,1731372650242,-940.78,0.00014999,2]
[342032687,1731372650252,-327.31431416,0.00014999,2]
[342032688,1731372650264,-613.69115035,0.00014999,2]
[342032689,1731372650274,-8158.50884965,0.00015,2]
[342032690,1731372650286,-1138.28203649,0.00015,2]
[342032691,1731372650297,-4127.08065414,0.00015,2]
[342032692,1731372650310,-1060.66763246,0.00015,2]
[342032693,1731372650660,-2354.84452477,0.00015,2]
[342032694,1731372650873,-176206.7728321,0.00015,2]
[342032695,1731372650889,-5360.8,0.00015,2]
[342032696,1731372690726,150.0,0.00020316,120]
[342032697,1731372755219,900.0,0.00025,120]
[342032700,1731373412491,1368.12,0.00011265,2]
[342032703,1731373517410,1500.0,0.00012,2]
[342032715,1731373718766,188.8,0.00012489,2]
[342032716,1731373769131,-1053.0,0.00012874,2]
[342032717,1731373769152,-519.59,0.00012959,2]
[342032718,1731373769172,-1042.53,0.0001297,2]
[342032719,1731373769192,-150.0,0.00013106,2]
[342032720,1731373769212,-252.79,0.00013118,2]
[342032721,1731373769232,-150.0,0.00013118,2]
[342032722,1731373769253,-1956.59364924,0.00013146,2]
[342032723,1731373770708,150.0,0.00023328,120]
[342032734,1731373831644,-1795.4653114,0.00013146,2]
[342032736,1731373831665,-495.5346886,0.00013146,2]
[342032737,1731373831814,-5265.15368676,0.00013146,2]
[342032738,1731373831826,-453.16827738,0.00013146,2]
[342032739,1731373831838,-13934.08438662,0.00013146,2]
[342032740,1731373831849,-1000.0,0.00013146,2]
[342032741,1731373831859,-200.0,0.00013175,2]
[342032742,1731373831869,-250.0,0.00013179,2]
[342032743,1731373831879,-165.18,0.00013197,2]
[342032744,1731373831889,-391.37844438,0.00013197,2]
[342032745,1731373831899,-150.0,0.00013208,2]
[342032746,1731373831912,-687.53,0.00013209,2]
[342032747,1731373831923,-3900.1,0.00013225,2]
[342032748,1731373831933,-257.68,0.00013246,2]
[342032749,1731373831943,-622.02,0.00013256,2]
[342032750,1731373831953,-1852.42,0.00013276,2]
[342032751,1731373831963,-2964.41,0.00013277,2]
[342032752,1731373831973,-250.0,0.00013287,2]
[342032753,1731373831983,-1244.84,0.00013297,2]
[342032754,1731373831993,-1368.12,0.00013528,2]
[342032755,1731373832004,-1053.0,0.00013552,2]
[342032756,1731373832014,-2631.136,0.00013598,2]
[342032757,1731373832025,-181.57,0.00013599,2]
[342032758,1731373832035,-1775.2352838,0.00013618,2]
[342032759,1731373832046,-195.0,0.00013625,2]
[342032760,1731373832056,-195.0,0.00013633,2]
[342032761,1731373832068,-195.0,0.0001364,2]
[342032762,1731373832081,-195.0,0.00013647,2]
[342032763,1731373832092,-195.0,0.00013654,2]
[342032764,1731373832103,-195.0,0.00013661,2]
[342032765,1731373832114,-195.0,0.00013668,2]
[342032766,1731373832125,-195.0,0.00013676,2]
[342032767,1731373832135,-195.0,0.00013683,2]
[342032768,1731373832145,-195.0,0.0001369,2]
[342032769,1731373832159,-195.0,0.00013697,2]
[342032770,1731373832169,-500.0,0.00013698,2]
[342032771,1731373832180,-500.0,0.00013698,2]
[342032772,1731373832190,-500.0,0.00013698,2]
[342032773,1731373832201,-500.0,0.00013698,2]
[342032774,1731373832211,-500.0,0.00013698,2]
[342032775,1731373832221,-500.0,0.00013698,2]
[342032776,1731373832232,-500.0,0.00013698,2]
[342032777,1731373832242,-500.0,0.00013698,2]
[342032778,1731373832253,-500.0,0.00013698,2]
[342032779,1731373832263,-500.0,0.00013698,2]
[342032781,1731373832273,-500.0,0.00013698,2]
[342032783,1731373832283,-500.0,0.00013698,2]
[342032785,1731373832294,-500.0,0.00013698,2]
[342032787,1731373832304,-500.0,0.00013698,2]
[342032789,1731373832313,-500.0,0.00013698,2]
[342032791,1731373832323,-500.0,0.00013698,2]
[342032792,1731373832333,-500.0,0.00013698,2]
[342032793,1731373832344,-500.0,0.00013698,2]
[342032794,1731373832354,-537.76536012,0.00013698,2]
[342032795,1731373832364,-500.0,0.00013698,2]
[342032796,1731373832374,-500.0,0.00013698,2]
[342032797,1731373832384,-500.0,0.00013698,2]
[342032798,1731373832394,-500.0,0.00013698,2]
[342032799,1731373832405,-758.03126,0.00013698,2]
[342032800,1731373832420,-150.0,0.00013699,2]
[342032801,1731373832431,-250.0,0.00013699,2]
[342032802,1731373832441,-200.0,0.00013699,2]
[342032803,1731373832451,-250.0,0.000137,2]
[342032804,1731373832461,-200.0,0.000137,2]
[342032805,1731373832472,-195.0,0.00013704,2]
[342032806,1731373832482,-195.0,0.00013712,2]
[342032807,1731373832492,-195.0,0.00013719,2]
[342032808,1731373832503,-195.0,0.00013726,2]
[342032809,1731373832513,-195.0,0.00013733,2]
[342032810,1731373832523,-195.0,0.0001374,2]
[342032811,1731373832532,-195.0,0.00013747,2]
[342032812,1731373832542,-195.0,0.00013755,2]
[342032813,1731373832552,-195.0,0.00013762,2]
[342032814,1731373832562,-1350.822,0.0001389,2]
[342032815,1731373832573,-257.68,0.00013909,2]
[342032816,1731373832583,-500.0,0.00014,2]
[342032817,1731373832594,-273.05,0.00014,2]
[342032818,1731373832604,-722.35352476,0.00014229,2]
[342032819,1731373832614,-500.0,0.00014259,2]
[342032820,1731373832625,-500.0,0.00014259,2]
[342032821,1731373832635,-500.0,0.00014259,2]
[342032822,1731373832644,-500.0,0.00014259,2]
[342032823,1731373832654,-500.0,0.00014259,2]
[342032824,1731373832668,-500.0,0.00014259,2]
[342032825,1731373832679,-500.0,0.00014259,2]
[342032826,1731373832689,-500.0,0.00014259,2]
[342032827,1731373832700,-255.0,0.00014317,2]
[342032828,1731373832710,-150.0,0.00014447,2]
[342032829,1731373832721,-188.8,0.00014461,2]
[342032830,1731373832731,-500.0,0.00014498,2]
[342032831,1731373832741,-525.58056595,0.00014498,2]
[342032832,1731373832751,-500.0,0.00014498,2]
[342032833,1731373832760,-500.0,0.00014498,2]
[342032834,1731373832771,-500.0,0.00014498,2]
[342032835,1731373832781,-500.0,0.00014498,2]
[342032836,1731373832791,-500.0,0.00014498,2]
[342032837,1731373832802,-500.0,0.00014498,2]
[342032838,1731373832812,-500.0,0.00014499,2]
[342032839,1731373832822,-500.0,0.00014499,2]
[342032840,1731373832832,-500.0,0.00014499,2]
[342032841,1731373832842,-500.0,0.00014499,2]
[342032842,1731373832852,-500.0,0.00014499,2]
[342032843,1731373832862,-500.0,0.00014499,2]
[342032844,1731373832872,-531.91498776,0.00014499,2]
[342032845,1731373832882,-500.0,0.00014499,2]
[342032846,1731373832892,-500.0,0.00014499,2]
[342032847,1731373832902,-250.6,0.00014499,2]
[342032848,1731373832914,-166.759625,0.000145,2]
[342032849,1731373832925,-166.759625,0.000145,2]
[342032850,1731373832935,-155.014645,0.000145,2]
[342032851,1731373832945,-201.804,0.00014565,2]
[342032852,1731373833242,-150.0,0.00014565,2]
[342032853,1731373833264,-5929.0,0.00014565,2]
[342032854,1731373833282,-13631.0,0.00014565,2]
[342032855,1731373833291,-257.68,0.00014571,2]
[342032856,1731373833300,-174.17,0.0001459,2]
[342032857,1731373833310,-451.0,0.00014648,2]
[342032858,1731373833319,-1252.0,0.00014648,2]
[342032859,1731373833328,-563.0,0.00014648,2]
[342032860,1731373833337,-628.0,0.00014648,2]
[342032861,1731373833347,-1923.0,0.00014648,2]
[342032862,1731373833356,-1308.292,0.00014648,2]
[342032863,1731373833365,-814.0,0.00014648,2]
[342032864,1731373833375,-2074.0,0.00014648,2]
[342032865,1731373833384,-482.048,0.00014648,2]
[342032866,1731373833394,-398.47680546,0.0001466,2]
[342032867,1731373833403,-774.2516,0.00014673,2]
[342032868,1731373833415,-160.501235,0.000147,2]
[342032869,1731373833424,-3074.85463446,0.00014747,2]
[342032870,1731373833434,-3074.85463442,0.00014764,2]
[342032871,1731373833444,-3074.85463442,0.00014781,2]
[342032872,1731373833453,-1000.0,0.00014789,2]
[342032873,1731373833462,-3074.85463442,0.00014798,2]
[342032874,1731373833472,-3074.85463442,0.00014815,2]
[342032875,1731373833481,-3074.85463442,0.00014832,2]
[342032876,1731373833491,-165.18,0.00014847,2]
[342032877,1731373833500,-3074.85463442,0.00014849,2]
[342032878,1731373833510,-3000.0,0.0001485,2]
[342032879,1731373833519,-687.53,0.0001486,2]
[342032880,1731373833528,-3074.85463442,0.00014866,2]
[342032881,1731373833538,-3074.85463442,0.00014883,2]
[342032882,1731373833548,-536.1939,0.00014899,2]
[342032883,1731373833557,-316.2431,0.00014899,2]
[342032884,1731373833567,-3277.3913,0.000149,2]
[342032885,1731373833577,-10543.7192,0.000149,2]
[342032886,1731373833586,-15186.3243,0.000149,2]
[342032887,1731373833596,-1741.96351496,0.000149,2]
[342032888,1731373833605,-1741.96351496,0.000149,2]
[342032889,1731373833615,-3074.85463442,0.000149,2]
[342032890,1731373833625,-158.21800121,0.000149,2]
[342032891,1731373833638,-207.01885933,0.000149,2]
[342032892,1731373833648,-713.13530072,0.000149,2]
[342032893,1731373833658,-1743.91234034,0.000149,2]
[342032894,1731373833672,-900.0,0.0001497,2]
[342032895,1731373833681,-500.0,0.00014973,2]
[342032896,1731373833690,-853.56373418,0.00014988,2]
[342032897,1731373833700,-191.3759858,0.00014989,2]
[342032898,1731373833710,-191.3759858,0.0001499,2]
[342032899,1731373833719,-191.3759858,0.0001499,2]
[342032900,1731373833729,-191.3759858,0.0001499,2]
[342032901,1731373833738,-191.3759858,0.0001499,2]
[342032902,1731373833748,-191.3759858,0.0001499,2]
[342032903,1731373833757,-500.0,0.00014998,2]
[342032904,1731373833766,-500.0,0.00014998,2]
[342032905,1731373833776,-500.0,0.00014998,2]
[342032906,1731373833785,-543.24,0.00014998,2]
[342032907,1731373833794,-500.0,0.00014998,2]
[342032908,1731373833803,-649.96,0.00014998,2]
[342032909,1731373833813,-500.0,0.00014998,2]
[342032910,1731373833822,-649.96,0.00014998,2]
[342032911,1731373833832,-649.96,0.00014998,2]
[342032912,1731373833841,-649.96,0.00014998,2]
[342032913,1731373833851,-649.96,0.00014998,2]
[342032914,1731373833861,-649.96,0.00014998,2]
[342032915,1731373833870,-649.96,0.00014998,2]
[342032916,1731373833879,-649.96,0.00014998,2]
[342032917,1731373833889,-649.96,0.00014998,2]
[342032918,1731373833899,-649.96,0.00014998,2]
[342032919,1731373833913,-649.96,0.00014998,2]
[342032920,1731373833923,-649.96,0.00014998,2]
[342032921,1731373833933,-649.96,0.00014998,2]
[342032922,1731373833943,-649.96,0.00014998,2]
[342032923,1731373833952,-649.96,0.00014998,2]
[342032924,1731373833962,-649.96,0.00014998,2]
[342032925,1731373833971,-649.96,0.00014998,2]
[342032926,1731373833981,-649.96,0.00014998,2]
[342032927,1731373833990,-649.96,0.00014998,2]
[342032928,1731373834000,-649.96,0.00014998,2]
[342032929,1731373834009,-649.96,0.00014998,2]
[342032930,1731373834019,-649.96,0.00014998,2]
[342032931,1731373834028,-649.96,0.00014998,2]
[342032932,1731373834038,-649.98265999,0.00014998,2]
[342032933,1731373834047,-500.0,0.00014998,2]
[342032934,1731373834056,-500.0,0.00014998,2]
[342032935,1731373834067,-500.0,0.00014999,2]
[342032936,1731373834080,-500.0,0.00014999,2]
[342032937,1731373834089,-500.0,0.00014999,2]
[342032938,1731373834099,-500.0,0.00014999,2]
[342032939,1731373834109,-500.0,0.00014999,2]
[342032940,1731373834119,-500.0,0.00014999,2]
[342032941,1731373834128,-500.0,0.00014999,2]
[342032942,1731373834138,-459.63234914,0.00014999,2]
[342032943,1731373834147,-500.0,0.00014999,2]
[342032944,1731373834158,-500.0,0.00014999,2]
[342032945,1731373834171,-500.0,0.00014999,2]